Workbook

Sheet Fig.7-4
H1: Bban | J1: Blimit | L1: Indicators | M1: Minimum stock | N1: Minimum catch | O1: # fishing ban | P1: N<Nlimit | R1: Catch (long term)
A2: ｒ | B2: K | C2: σｒ | D2: ρ autocorelation | E2: σe measurement errors | G2: σc process errors | H2: 200 | I2: =H2 -> 200 | J2: 700 | K2: 2000 | M2: =MIN(B6:B101) -> 370.962437 | N2: =MIN(E6:E101) -> 36.73455825 | O2: =COUNTIF(E6:E106,0) -> 0 | P2: =COUNTIF(D6:D71,"<"&J3) -> 50 | Q2: Cave | R2: =AVERAGE(E6:E75) -> 155.2307785
A3: 0.5 | B3: 1000 | C3: 1 | D3: 0.7 | E3: 0.3 | F3: 0.1 | G3: Flimit | H3: 0 | I3: =J3*I2/J2 -> 0.1 | J3: 0.35 | K3: =J3 -> 0.35 | M3: 300 | N3: 20 | O3: 0 | Q3: Csd | R3: =STDEV(E6:E75) -> 69.37568371
G4: Ftarget | H4: =H3*0.8 -> 0 | I4: =I3*0.8 -> 0.08 | J4: =J3*0.8 -> 0.28 | K4: =K3*0.8 -> 0.28 | L4: Risk that indicators does not satiffy the target | M4: 8 | N4: 30 | O4: 1 | P4: 100 | Q4: # trials | R4: 100
A5: ｔ | B5: N Stock abundance | C5: Ñ Estimated stock abundance | D5: F fishing coefficient | E5: C catch amount | H5: =A3/B3 -> 0.0005
A6: 0 | B6: 500 | C6: =B6*(1-E$3+2*RAND()*E$3) -> 421.2911679 | D6: =IF(C6<H$2,0,IF(C6<J$2,(J$3*(C6-H$2)/(J$2-H$2)),J$3)) -> 0.1549038175 | E6: =B6*D6*(1-F$3+2*RAND()*F$3) -> 74.39809323 | F6: =(A$3*(1-C$3+2*RAND()*C$3)) -> 0.968798492
A7: =A6+1 -> 1 | B7: =(B6-E6)*EXP(F7-(B6-E6)*H$5) -> 700.0234626 | C7: 853.8267208 | D7: 0.35 | E7: 221.8679552 | F7: =D$3*F6+(1-D$3)*(A$3*(1-C$3+2*RAND()*C$3)) -> 0.7104103877
A8: =A7+1 -> 2 | B8: 824.9474755 | C8: 657.845931 | D8: 0.3204921517 | E8: 288.8708993 | F8: 0.784461463
A9: 3 | B9: 818.1030845 | C9: 638.6575237 | D9: 0.3070602666 | E9: 254.5922968 | F9: 0.69074962
A10: 4 | B10: 693.6128343 | C10: 706.0058854 | D10: 0.35 | E10: 233.8600588 | F10: 0.4894828456
A11: 5 | B11: 573.3292248 | C11: 683.0070916 | D11: 0.3381049641 | E11: 205.9253928 | F11: 0.4506476023
A12: 6 | B12: 535.0069886 | C12: 680.8121071 | D12: 0.336568475 | E12: 166.5647629 | F12: 0.5595201228
A13: 7 | B13: 577.9000574 | C13: 451.1632718 | D13: 0.1758142902 | E13: 98.44819211 | F13: 0.6343381385
A14: 8 | B14: 723.2985225 | C14: 731.5752693 | D14: 0.35 | E14: 257.9199434 | F14: 0.6509044597
A15: 9 | B15: 625.7566306 | C15: 778.7561961 | D15: 0.35 | E15: 231.8851873 | F15: 0.5287995931
A16: 10 | B16: 491.1934197 | C16: 604.5152879 | D16: 0.2831607015 | E16: 139.0133678 | F16: 0.4177491322
A17: 11 | B17: 396.6355324 | C17: 450.7924142 | D17: 0.17555469 | E17: 63.72264813 | F17: 0.2949652746
A18: 12 | B18: 380.1733912 | C18: 386.3472581 | D18: 0.1304430807 | E18: 52.18191447 | F18: 0.2992030366
A19: 13 | B19: 402.538376 | C19: 501.588135 | D19: 0.2111116945 | E19: 80.24195524 | F19: 0.3687985522
A20: 14 | B20: 370.962437 | C20: 380.474519 | D20: 0.1263321633 | E20: 48.79112889 | F20: 0.3017773363
A21: 15 | B21: 384.1073283 | C21: 374.5368178 | D21: 0.1221757724 | E21: 42.6867646 | F21: 0.3369242517
A22: 16 | B22: 433.7787212 | C22: 362.2055966 | D22: 0.1135439176 | E22: 45.41522697 | F22: 0.4101297848
A23: 17 | B23: 495.6835335 | C23: 517.5889402 | D23: 0.2223122582 | E23: 106.7292776 | F23: 0.4381776912
A24: 18 | B24: 505.8765661 | C24: 413.0208784 | D24: 0.1491146149 | E24: 73.01245825 | F24: 0.4573080844
A25: 19 | B25: 558.2143803 | C25: 609.4091089 | D25: 0.2865863762 | E25: 167.1022746 | F25: 0.4707512965
A26: 20 | B26: 533.0450935 | C26: 630.2069935 | D26: 0.3011448954 | E26: 157.1957701 | F26: 0.5051678424
A27: 21 | B27: 489.980892 | C27: 399.2768063 | D27: 0.1394937644 | E27: 69.55901598 | F27: 0.4531027287
A28: 22 | B28: 504.9872271 | C28: 590.3307106 | D28: 0.2732314974 | E28: 130.8816516 | F28: 0.3934854002
A29: 23 | B29: 416.2219748 | C29: 433.0815199 | D29: 0.1631570639 | E29: 67.06146851 | F29: 0.293733454
A30: 24 | B30: 440.8062283 | C30: 387.782171 | D30: 0.1314475197 | E30: 56.68796292 | F30: 0.4076539205
A31: 25 | B31: 497.0262751 | C31: 564.15347 | D31: 0.254907429 | E31: 134.1480787 | F31: 0.4497515369 | O31: Sub TAC()
A32: 26 | B32: 554.4298513 | C32: 419.2344041 | D32: 0.1534640829 | E32: 89.88159082 | F32: 0.6053121582 | O32: '
A33: 27 | B33: 668.7471505 | C33: 639.2860816 | D33: 0.3075002571 | E33: 189.8641404 | F33: 0.5966147169 | O33: ' TAC Macro
A34: 28 | B34: 640.010392 | C34: 599.9243767 | D34: 0.2799470637 | E34: 170.9455135 | F34: 0.529469589 | O34: ' マクロ記録日 : 2004/3/10 ユーザー名 : matsuda
A35: 29 | B35: 626.6274226 | C35: 687.5255134 | D35: 0.3412678594 | E35: 192.7532823 | F35: 0.5241434885 | O35: '
A36: 30 | B36: 660.4969668 | C36: 795.4462492 | D36: 0.35 | E36: 212.2427805 | F36: 0.6371751091 | O36: Dim i, a(3), b(3), c(3), d(3), n As Integer
A37: 31 | B37: 749.1351129 | C37: 835.9808129 | D37: 0.35 | E37: 265.296374 | F37: 0.7376859998 | O37: ActiveSheet.EnableCalculation = False
A38: 32 | B38: 674.1776649 | C38: =B38*(1-E$3+2*RAND()*E$3) -> 548.2865293 | D38: =IF(C38<H$2,0,IF(C38<J$2,(J$3*(C38-H$2)/(J$2-H$2)),J$3)) -> 0.2438005705 | E38: =B38*D38*(1-F$3+2*RAND()*F$3) -> 149.8387303 | F38: 0.5736613763 | O38: Keisan
A39: 33 | B39: =(B38-E38)*EXP(F39-(B38-E38)*H$5) -> 612.5644603 | C39: 602.9803535 | D39: 0.2820862474 | E39: 173.3374753 | F39: =D$3*F38+(1-D$3)*(A$3*(1-C$3+2*RAND()*C$3)) -> 0.4176853486 | O39: For i = 1 To 3
A40: 34 | B40: 532.732743 | C40: 374.8601876 | D40: 0.1224021314 | E40: 60.89911792 | F40: 0.4126170409 | O40: a(i) = ActiveSheet.Cells(i + 1, 13).Value
A41: 35 | B41: 646.3056169 | C41: 491.9631319 | D41: 0.2043741923 | E41: 140.6166722 | F41: 0.5505628615 | O41: b(i) = ActiveSheet.Cells(i + 1, 14).Value
A42: 36 | B42: 581.0559492 | C42: 569.9342964 | D42: 0.2589540075 | E42: 153.8637286 | F42: 0.3917697762 | O42: c(i) = ActiveSheet.Cells(i + 1, 15).Value
A43: 37 | B43: 588.7007284 | C43: 734.1556803 | D43: 0.35 | E43: 219.6143992 | F43: 0.5342799865 | O43: d(i) = ActiveSheet.Cells(i + 1, 16).Value
A44: 38 | B44: 513.5690017 | C44: 578.1899851 | D44: 0.2647329896 | E44: 129.8484396 | F44: 0.514896989 | O44: Next i
A45: 39 | B45: 610.2028377 | C45: 526.1147113 | D45: 0.2282802979 | E45: 126.6608387 | F45: 0.6557371189 | O45: n = ActiveSheet.Cells(4, 18).Value
A46: 40 | B46: 709.6399416 | C46: 900.0647619 | D46: 0.35 | E46: 268.6414258 | F46: 0.6253905408 | O46: '
A47: 41 | B47: 686.8290471 | C47: 568.6493296 | D47: 0.2580545308 | E47: 180.4152239 | F47: 0.6635431694 | O47: If a(1) < a(2) Then a(3) = a(3) + 1
A48: 42 | B48: 709.7216135 | C48: 922.6358167 | D48: 0.35 | E48: 258.6188933 | F48: 0.5907255436 | O48: If b(1) < b(2) Then b(3) = b(3) + 1
A49: 43 | B49: 581.9969026 | C49: 709.6233135 | D49: 0.35 | E49: 183.5061158 | F49: 0.4803214112 | O49: If c(1) > c(2) Then c(3) = c(3) + 1
A50: 44 | B50: 558.6005805 | C50: 660.2421294 | D50: 0.3221694906 | E50: 172.4520108 | F50: 0.5369957079 | O50: If d(1) > d(2) Then d(3) = d(3) + 1
A51: 45 | B51: 550.6119479 | C51: 450.5195971 | D51: 0.1753637179 | E51: 102.7127957 | F51: 0.5478823861
A52: 46 | B52: 696.2891405 | C52: 887.1572523 | D52: 0.35 | E52: 222.9022775 | F52: 0.6651464814 | O52: ActiveSheet.Cells(4, 13).Value = a(3)
A53: 47 | B53: 765.8540429 | C53: 664.0435175 | D53: 0.3248304622 | E53: 245.9311125 | F53: 0.7177720922 | O53: ActiveSheet.Cells(4, 14).Value = b(3)
A54: 48 | B54: 813.454214 | C54: 1014.140469 | D54: 0.35 | E54: 269.6400263 | F54: 0.7075705178 | O54: ActiveSheet.Cells(4, 15).Value = c(3)
A55: 49 | B55: 703.7244506 | C55: 554.5243844 | D55: 0.2481670691 | E55: 170.8411127 | F55: 0.5296863462 | O55: ActiveSheet.Cells(4, 16).Value = d(3)
A56: 50 | B56: 666.0377521 | C56: 473.3948394 | D56: 0.1913763876 | E56: 134.9729463 | F56: 0.4894855007 | O56: ActiveSheet.Cells(4, 18).Value = n + 1
A57: 51 | B57: 644.4436968 | C57: 585.3350855 | D57: 0.2697345598 | E57: 189.125233 | F57: 0.4590358034 | O57: ActiveSheet.EnableCalculation = True
A58: 52 | B58: 572.7663717 | C58: 561.1604404 | D58: 0.2528123083 | E58: 154.611079 | F58: 0.4571400425 | O58: End Sub
A59: 53 | B59: 513.3185332 | C59: 546.6088516 | D59: 0.2426261961 | E59: 121.8230481 | F59: 0.414121344 | O59: Sub TAC100()
A60: 54 | B60: 547.4471362 | C60: 412.3296121 | D60: 0.1486307285 | E60: 88.86902621 | F60: 0.5310396618 | O60: '
A61: 55 | B61: 669.8780018 | C61: 781.3660646 | D61: 0.35 | E61: 221.4721635 | F61: 0.6082540269 | O61: ' TAC初期化 Macro
A62: 56 | B62: 707.6036762 | C62: 865.5455953 | D62: 0.35 | E62: 239.2029257 | F62: 0.6803883653 | O62: ' マクロ記録日 : 2004/3/12 ユーザー名 : matsuda
A63: 57 | B63: 600.659863 | C63: 667.4024447 | D63: 0.3271817113 | E63: 209.2681342 | F63: 0.4829049639 | O63: '
A64: 58 | B64: 583.0054136 | C64: 445.8002041 | D64: 0.1720601429 | E64: 90.96838725 | F64: 0.5941834141 | O64: Dim j, n9 As Integer
A65: 59 | B65: 604.4711604 | C65: 444.0225389 | D65: 0.1708157773 | E65: 106.7287511 | F65: 0.4518185035 | O65: n9 = ActiveSheet.Cells(4, 18).Value
A66: 60 | B66: 571.7286009 | C66: 515.7905977 | D66: 0.2210534184 | E66: 113.801363 | F66: 0.3874529166 | O66: Range("r4").Select
A67: 61 | B67: 557.4360528 | C67: 631.7954623 | D67: 0.3022568236 | E67: 184.1026426 | F67: 0.42560111 | O67: ActiveCell.FormulaR1C1 = "0"
A68: 62 | B68: 518.8859758 | C68: 482.1908895 | D68: 0.1975336227 | E68: 99.90969943 | F68: 0.5158789829 | O68: Range("r4").Select
A69: 63 | B69: 637.901798 | C69: 806.3827305 | D69: 0.35 | E69: 233.8182638 | F69: 0.6298581893 | O69: Selection.Copy
A70: 64 | B70: 685.5509193 | C70: =B70*(1-E$3+2*RAND()*E$3) -> 522.3628397 | D70: =IF(C70<H$2,0,IF(C70<J$2,(J$3*(C70-H$2)/(J$2-H$2)),J$3)) -> 0.2256539878 | E70: =B70*D70*(1-F$3+2*RAND()*F$3) -> 145.7773392 | F70: 0.7306429195 | O70: Range("m4:p4").Select
A71: 65 | B71: 727.3469688 | C71: 701.2130637 | D71: 0.35 | E71: 276.5205162 | F71: 0.5681406592 | O71: Range("o4").Activate
A72: =A71+1 -> 66 | B72: 573.3242078 | C72: 691.3591846 | D72: 0.3439514292 | E72: 210.7254662 | F72: 0.4657821311 | O72: ActiveSheet.Paste
A73: =A72+1 -> 67 | B73: 481.9982958 | C73: 463.3644213 | D73: 0.1843550949 | E73: 81.25647296 | F73: 0.4659431213
A74: =A73+1 -> 68 | B74: 461.8218262 | C74: 404.5979634 | D74: 0.1432185743 | E74: 72.74634471 | F74: 0.3422326837 | O74: For j = 1 To n9
A75: =A74+1 -> 69 | B75: 492.5369236 | C75: 396.7340156 | D75: 0.1377138109 | E75: 70.36687026 | F75: 0.4303338058 | O75: Application.Run "TAC"
A76: =A75+1 -> 70 | B76: =(B75-E75)*EXP(F76-(B75-E75)*H$5) -> 522.4114759 | C76: =B76*(1-E$3+2*RAND()*E$3) -> 524.2937278 | D76: =IF(C76<H$2,0,IF(C76<J$2,(J$3*(C76-H$2)/(J$2-H$2)),J$3)) -> 0.2270056094 | E76: =B76*D76*(1-F$3+2*RAND()*F$3) -> 121.0673132 | F76: =D$3*F75+(1-D$3)*(A$3*(1-C$3+2*RAND()*C$3)) -> 0.4241323691 | O76: Next j
A77: 71 | B77: 447.8631562 | C77: 320.2159076 | D77: 0.08415113529 | E77: 36.73455825 | F77: 0.310340492 | O77: End Sub
A78: 72 | B78: 521.4459803 | C78: 422.1758557 | D78: 0.155523099 | E78: 86.88724539 | F78: 0.4432639269 | O78: Sub Keisan()
A79: 73 | B79: 625.9192414 | C79: 734.6707873 | D79: 0.35 | E79: 208.1882409 | F79: 0.582169609 | O79: ActiveSheet.EnableCalculation = True
A80: 74 | B80: 593.8344809 | C80: 738.9102567 | D80: 0.35 | E80: 204.1483688 | F80: 0.5606284433 | O80: ActiveSheet.EnableCalculation = False
A81: 75 | B81: 639.192969 | C81: 597.9765415 | D81: 0.2785835791 | E81: 187.4469885 | F81: 0.6897078764 | O81: End Sub
A82: 76 | B82: 772.9284105 | C82: 706.3189781 | D82: 0.35 | E82: 256.9760517 | F82: 0.7629393902
A83: 77 | B83: 694.9666364 | C83: 563.5881677 | D83: 0.2545117174 | E83: 161.6967214 | F83: 0.5558255855
A84: 78 | B84: 780.1082357 | C84: 640.2346393 | D84: 0.3081642475 | E84: 226.0094817 | F84: 0.6470399281
A85: 79 | B85: 666.6474935 | C85: 816.487271 | D85: 0.35 | E85: 239.2697933 | F85: 0.4619678607
